fUST/lending_fUST_20241012
["ID","MTS","AMOUNT","RATE_DAILY","PERIOD"]
[340151922,1728689443202,-500.0,0.00062905,120]
[340151924,1728689443212,-500.0,0.00062905,120]
[340151926,1728689443223,-500.0,0.00062905,120]
[340151928,1728689443234,-512.58,0.00062905,120]
[340151930,1728689443244,-500.0,0.00062905,120]
[340151932,1728689443253,-342.93723152,0.00062905,120]
[340151934,1728689443263,-560.25,0.00062905,120]
[340151936,1728689443274,-500.0,0.00062905,120]
[340151938,1728689443284,-500.0,0.00062905,120]
[340151939,1728689443295,-500.0,0.00062905,120]
[340151940,1728689443305,-350.16249255,0.00062905,120]
[340151941,1728689443316,-500.0,0.00062905,120]
[340151942,1728689443326,-500.0,0.00062905,120]
[340151943,1728689443336,-509.94715144,0.00062905,120]
[340151944,1728689443347,-500.0,0.00062905,7]
[340151945,1728689443362,-557.22639201,0.00062905,120]
[340151946,1728689443372,-498.50149801,0.00062905,120]
[340151947,1728689443383,-6960.46075678,0.00062994,120]
[340151948,1728689443393,-1242.79127277,0.00063,120]
[340151949,1728689443403,-523.19319728,0.00063,120]
[340151950,1728689443414,-1219.0,0.00063016,120]
[340151951,1728689443424,-150.112233,0.000632,11]
[340151952,1728689443435,-6960.46075678,0.00063228,120]
[340151953,1728689443444,-250.0,0.00063265,7]
[340151954,1728689443454,-64062.0112,0.0006334,120]
[340151956,1728689443463,-190576.30437822,0.0006335,2]
[340151968,1728689446555,-151.0,0.00059178,120]
[340151969,1728689446564,-151.0,0.00059178,120]
[340151970,1728689446574,-151.0,0.00059178,120]
[340151971,1728689446585,-151.0,0.00062905,120]
[340151972,1728689446597,-151.0,0.00062905,120]
[340151973,1728689446606,-647.24355311,0.0006335,2]
[340151974,1728689473675,64062.0112,4.279e-05,120]
[340151976,1728689794943,181.0,0.0003124,2]
[340151982,1728689921769,16408.46810541,0.00032001,2]
[340151984,1728689949979,450.0,0.00032001,2]
[340151987,1728690001001,166.666666,0.00031914,2]
[340151992,1728690131815,250.0,0.00031874,2]
[340151994,1728690164342,3000.0,0.00031874,2]
[340151998,1728690323604,240.36783535,0.00031874,7]
[340151999,1728690353279,-189.395955,0.00032112,2]
[340152000,1728690353306,-250.0,0.00032265,2]
[340152001,1728690353333,-174.260104,0.00032304,2]
[340152002,1728690353358,-159.5352867,0.00032338,2]
[340152003,1728690353384,-250.0,0.00032353,2]
[340152004,1728690353410,-250.0,0.00032442,2]
[340152005,1728690353434,-174.260104,0.00032466,2]
[340152006,1728690353460,-250.0,0.0003253,2]
[340152007,1728690353484,-250.0,0.00032619,2]
[340152008,1728690353510,-250.0,0.00032707,2]
[340152009,1728690353533,-250.0,0.00032796,2]
[340152010,1728690353555,-305.1580596,0.00032877,120]
[340152011,1728690353580,-250.0,0.00032884,2]
[340152012,1728690353604,-250.0,0.00032973,2]
[340152013,1728690353630,-250.0,0.00033061,2]
[340152014,1728690353657,-250.0,0.0003315,2]
[340152015,1728690353679,-250.0,0.00033238,2]
[340152016,1728690353703,-250.0,0.00033327,2]
[340152017,1728690353728,-250.0,0.00033415,2]
[340152018,1728690353753,-400.0,0.00033431,2]
[340152019,1728690353778,-400.0,0.00033431,2]
[340152020,1728690353802,-4820.91768438,0.00033432,2]
[340152021,1728690353830,-250.0,0.00033504,2]
[340152022,1728690353856,-5764.5401726,0.00033523,2]
[340152023,1728690400614,279999.0,4.3e-07,120]
[340152024,1728690434105,-299.8457639,0.00032607,2]
[340152025,1728690434131,-400.0,0.00033522,2]
[340152026,1728690434156,-400.0,0.00033522,2]
[340152027,1728690434182,-700.1542361,0.00033523,2]
[340152028,1728690437106,-18435.3055913,0.00033523,2]
[340152029,1728690437133,-250.0,0.00033592,2]
[340152030,1728690437157,-250.0,0.00033681,2]
[340152031,1728690437181,-250.0,0.00033769,2]
[340152032,1728690437205,-250.0,0.00033858,2]
[340152033,1728690437229,-250.0,0.00033946,2]
[340152034,1728690437253,-165.26298292,0.00035374,41]
[340152035,1728690442143,-45.95401708,0.00035374,41]
[340152036,1728690442165,-20283.15424239,0.000359,2]
[340152037,1728690442188,-167.87132463,0.000359,2]
[340152038,1728690442211,-91.0161073,0.00035998,2]
[340152039,1728690443102,-191.20177363,0.00035998,2]
[340152040,1728690445106,-277.78211907,0.00035998,2]
[340152041,1728690445130,-1000.0,0.00036,2]
[340152042,1728690445154,-399.0,0.00036874,2]
[340152043,1728690445178,-150.51329911,0.00037001,2]
[340152044,1728690446104,-590.66512146,0.00037001,2]
[340152050,1728690545095,-171.677469,0.00036191,2]
[340152051,1728690545124,-206.76066851,0.00037001,2]
[340152052,1728690545146,-527.78697394,0.00037001,2]
[340152053,1728690545167,-564.6993111,0.00037001,2]
[340152054,1728690545188,-500.0,0.00037001,2]
[340152055,1728690545210,-29417.98068506,0.00037562,106]
[340152056,1728690545231,-500.0,0.00037663,5]
[340152057,1728690545253,-1000.0,0.00039032,5]
[340152058,1728690545277,-167.87132462,0.00039279,2]
[340152059,1728690545298,-189.395955,0.00039495,2]
[340152060,1728690545325,-157.33,0.000414,31]
[340152061,1728690545351,-157.33,0.000414,31]
[340152062,1728690545372,-167.87132462,0.00042659,2]
[340152063,1728690545393,-400.0,0.00044658,2]
[340152064,1728690545416,-29417.98068506,0.00045559,120]
[340152065,1728690545440,-167.87132462,0.00046038,2]
[340152066,1728690545464,-163.0,0.00047,90]
[340152067,1728690545494,-157.33,0.000472,42]
[340152068,1728690545523,-157.33,0.000472,42]
[340152069,1728690545552,-157.33,0.000472,42]
[340152070,1728690545580,-157.33,0.000472,42]
[340152071,1728690545602,-163.0,0.00048904,90]
[340152072,1728690546133,-222.5,0.00049387,10]
[340152073,1728690546156,-185.42,0.00049387,10]
[340152074,1728690546178,-201.98,0.00049387,30]
[340152075,1728690546200,-88888.0,0.00049397,120]
[340152076,1728690546224,-167.87132462,0.00049417,2]
[340152077,1728690546248,-28821.3327223,0.00049487,7]
[340152078,1728690546280,-6160.29052488,0.00049487,7]
[340152079,1728690546306,-400.0,0.00049517,2]
[340152080,1728690546328,-500.0,0.00050933,10]
[340152081,1728690546361,-157.33,0.000531,51]
[340152082,1728690546390,-157.33,0.000531,51]
[340152083,1728690546418,-157.33,0.000531,51]
[340152084,1728690546449,-157.33,0.000531,51]
[340152085,1728690546475,-29417.98068506,0.00053556,120]
[340152086,1728690546498,-500.0,0.00053862,10]
[340152087,1728690549751,1033.33218596,0.00053931,2]
[340152088,1728690556104,-211.218,0.00054031,101]
[340152089,1728690556131,-153.0,0.00054154,120]
[340152090,1728690556155,-153.0,0.00054154,120]
[340152091,1728690556181,-153.0,0.00054154,120]
[340152092,1728690556207,-153.0,0.00054154,120]
[340152093,1728690556231,-153.0,0.00054154,120]
[340152094,1728690556257,-153.0,0.00054154,120]
[340152095,1728690556285,-153.0,0.00054154,120]
[340152096,1728690556308,-153.0,0.00054154,120]
[340152097,1728690556330,-153.0,0.00054154,120]
[340152098,1728690556352,-153.0,0.00054154,120]
[340152099,1728690556375,-153.0,0.00054154,120]
[340152100,1728690556400,-153.0,0.00054154,120]
[340152101,1728690556424,-153.0,0.00054154,120]
[340152102,1728690556447,-153.0,0.00054154,120]
[340152103,1728690556470,-153.0,0.00054154,120]
[340152104,1728690556495,-500.0,0.00054355,10]
[340152105,1728690556519,-400.0,0.00054376,2]
[340152106,1728690556542,-344.49023399,0.00054486,120]
[340152107,1728690556566,-500.0,0.00054486,120]
[340152108,1728690556592,-28821.3327223,0.00054487,8]
[340152109,1728690556618,-6160.29052488,0.00054487,8]
[340152110,1728690556639,-11449.04219416,0.00054497,2]
[340152111,1728690556662,-28821.3327223,0.00054762,8]
[340152112,1728690556687,-6160.29052488,0.00054762,8]
[340152113,1728690556711,-154.51,0.00054764,10]
[340152114,1728690556733,-500.0,0.00054773,10]
[340152115,1728690556758,-15964.87717225,0.00054774,8]
[340152116,1728690562096,-4160.17635789,0.00054387,28]
[340152117,1728690586480,13192.43977856,0.00041557,2]
[340152118,1728690586506,11707.56022144,0.00041557,2]
[340152119,1728690608038,6000.0,0.00032001,2]
[340152161,1728690632646,-150.0,0.00054153,15]
[340152163,1728690632658,-153.0,0.00054154,120]
[340152165,1728690632668,-153.0,0.00054154,120]
[340152167,1728690632679,-153.0,0.00054154,120]
[340152169,1728690632691,-153.0,0.00054154,120]
[340152172,1728690632701,-153.0,0.00054154,120]
[340152174,1728690632711,-153.0,0.00054154,120]
[340152176,1728690632723,-123.61774336,0.00054154,120]
[340152180,1728690632739,-29.38225664,0.00054154,120]
[340152181,1728690632750,-58.12661596,0.00054387,28]
[340152183,1728690632760,-221.40669604,0.00054684,2]
[340152185,1728690632771,-221.40669603,0.00054694,2]
[340152187,1728690632782,-500.0,0.00054773,10]
[340152189,1728690632792,-4046.87737219,0.00054774,8]
[340152191,1728690632806,-486.54876236,0.00054774,8]
[340152196,1728690632846,-65.62945794,0.00054774,8]
[340152255,1728690639254,-5992.01807038,0.00054774,8]
[340152256,1728690639555,-259.51384486,0.00054774,8]
[340152257,1728690639567,-2005.86804232,0.00054774,8]
[340152258,1728690639577,-6160.29052488,0.00054774,8]
[340152259,1728690639586,-787.05,0.00054774,10]
[340152260,1728690639595,-572.94,0.00054774,10]
[340152261,1728690639605,-160.24522357,0.00054782,120]
[340152262,1728690639614,-13312.94735118,0.00054782,120]
[340152263,1728690639624,-57642.6654446,0.00054784,8]
[340152264,1728690639634,-12320.5810498,0.00054784,8]
[340152265,1728690639644,-157.25,0.00054789,7]
[340152266,1728690639654,-157.25,0.00054789,7]
[340152267,1728690639664,-157.25,0.00054789,7]
[340152268,1728690639673,-157.25,0.00054789,7]
[340152269,1728690639682,-157.25,0.00054789,7]
[340152270,1728690639692,-157.25,0.00054789,7]
[340152271,1728690639702,-157.25,0.00054789,7]
[340152272,1728690639711,-599.80697952,0.00054789,120]
[340152273,1728690639720,-339.86469868,0.00054789,120]
[340152274,1728690639730,-225.88577408,0.00054789,120]
[340152275,1728690639739,-440.13326509,0.00054789,120]
[340152276,1728690639749,-86463.998167,0.0005479,8]
[340152277,1728690639759,-73923.4862986,0.0005479,8]
[340152278,1728690639768,-250.0,0.00054794,120]
[340152279,1728690639778,-500.0,0.00054794,120]
[340152280,1728690639787,-500.0,0.00054794,120]
[340152281,1728690639796,-500.0,0.00054794,120]
[340152282,1728690639805,-603.17950864,0.00054794,120]
[340152283,1728690639815,-342.44700329,0.00054794,120]
[340152284,1728690639825,-307.79536,0.00054794,120]
[340152285,1728690639835,-500.0,0.00054794,120]
[340152286,1728690639845,-500.0,0.00054794,120]
[340152287,1728690639855,-500.0,0.00054794,120]
[340152288,1728690639864,-500.0,0.00054794,120]
[340152289,1728690639874,-512.58,0.00054794,120]
[340152290,1728690639883,-500.0,0.00054794,120]
[340152291,1728690639893,-342.93723152,0.00054794,120]
[340152292,1728690639902,-418.28701997,0.00054794,2]
[340152293,1728690639911,-560.25,0.00054794,120]
[340152294,1728690639921,-500.0,0.00054794,120]
[340152295,1728690639930,-528.65536785,0.00054794,120]
[340152296,1728690639941,-500.0,0.00054794,120]
[340152297,1728690639951,-500.0,0.00054794,120]
[340152298,1728690639961,-500.0,0.00054794,120]
[340152299,1728690639970,-500.0,0.00054794,120]
[340152300,1728690639980,-500.0,0.00054794,120]
[340152301,1728690639989,-350.16249255,0.00054794,120]
[340152302,1728690639999,-509.94715144,0.00054794,120]
[340152303,1728690640008,-500.0,0.00054794,7]
[340152304,1728690640017,-557.22639201,0.00054794,120]
[340152305,1728690640027,-525.06,0.00054794,120]
[340152306,1728690640036,-498.50149801,0.00054794,120]
[340152307,1728690640045,-500.0,0.00054794,120]
[340152308,1728690640055,-500.0,0.00054794,120]
[340152309,1728690640066,-500.0,0.00054794,120]
[340152310,1728690640076,-500.0,0.00054794,120]
[340152311,1728690640086,-500.0,0.00054794,120]
[340152312,1728690640095,-500.00094351,0.00054794,120]
[340152313,1728690640105,-500.0,0.00054794,120]
[340152314,1728690640115,-510.0,0.00054794,120]
[340152315,1728690640126,-500.0,0.00054794,120]
[340152316,1728690640136,-500.0,0.00054794,120]
[340152317,1728690640147,-500.0,0.00054794,120]
[340152318,1728690640157,-500.0,0.00054794,120]
[340152319,1728690640167,-500.0,0.00054794,120]
[340152320,1728690640177,-500.0,0.00054794,120]
[340152321,1728690640187,-500.0,0.00054794,2]
[340152322,1728690640197,-531.7543553,0.00054794,120]
[340152323,1728690640207,-573.48,0.00054794,120]
[340152324,1728690640217,-500.0,0.00054794,120]
[340152325,1728690640226,-500.0,0.00054794,120]
[340152326,1728690640236,-500.0,0.00054794,120]
[340152328,1728690640246,-500.0,0.00054794,120]
[340152330,1728690640256,-500.0,0.00054794,120]
[340152331,1728690640265,-500.0,0.00054794,120]
[340152332,1728690640277,-500.0,0.00054794,120]
[340152333,1728690640286,-302.11958062,0.00054794,120]
[340152334,1728690640296,-316.32847785,0.00054794,2]
[340152336,1728690640306,-500.0,0.00054794,30]
[340152338,1728690640316,-500.0,0.00054794,120]
[340152339,1728690640325,-535.18,0.00054794,120]
[340152340,1728690640335,-500.0,0.00054794,120]
[340152341,1728690640344,-500.0,0.00054794,120]
[340152342,1728690640354,-574.67392585,0.00054794,120]
[340152343,1728690640365,-500.0,0.00054794,120]
[340152344,1728690640376,-500.0,0.00054794,120]
[340152345,1728690640388,-500.0,0.00054794,120]
[340152346,1728690640398,-500.0,0.00054794,120]
[340152348,1728690640410,-500.0,0.00054794,120]
[340152350,1728690640420,-500.0,0.00054794,120]
[340152352,1728690640432,-500.0,0.00054794,120]
[340152353,1728690640443,-500.0,0.00054794,2]
[340152354,1728690640453,-500.0,0.00054794,2]
[340152356,1728690640465,-500.0,0.00054794,2]
[340152358,1728690640475,-463.72,0.00054794,2]
[340152360,1728690640487,-500.0,0.00054794,120]
[340152362,1728690640497,-500.0,0.00054794,120]
[340152363,1728690640508,-29908.35,0.00054794,18]
[340152365,1728690640518,-500.0,0.00054794,7]
[340152367,1728690640528,-500.94527331,0.00054794,120]
[340152368,1728690640538,-500.0,0.00054794,30]
[340152369,1728690640550,-500.0,0.00054794,120]
[340152370,1728690640560,-500.0,0.00054794,120]
[340152372,1728690640571,-500.0,0.00054794,120]
[340152374,1728690640582,-500.0,0.00054794,120]
[340152375,1728690640592,-500.0,0.00054794,120]
[340152377,1728690640602,-500.0,0.00054794,120]
[340152378,1728690640613,-300.0,0.00054794,120]
[340152379,1728690640625,-150.96,0.00054794,2]
[340152381,1728690640637,-1250.0,0.00054794,120]
[340152382,1728690640648,-226.25321884,0.00054794,120]
[340152383,1728690640660,-500.0,0.00054794,120]
[340152384,1728690640671,-500.0,0.00054794,2]
[340152385,1728690640685,-558671.55665496,0.000548,120]
[340152386,1728690640754,-500.0,0.00054794,120]
[340152387,1728690640765,-5354.37103027,0.000548,120]
[340152388,1728690640776,-712.1496365,0.00054948,2]
[340152389,1728690640788,-6160.29052488,0.00055038,8]
[340152390,1728690640801,-6160.29052488,0.00055058,8]
[340152391,1728690640813,-500.0,0.00055068,120]
[340152392,1728690640824,-517.735595,0.00055068,120]
[340152393,1728690640835,-29908.35,0.00055068,18]
[340152394,1728690640846,-155.07,0.00055068,30]
[340152395,1728690640857,-500.0,0.00055068,120]
[340152396,1728690640867,-168.96,0.000551,2]
[340152397,1728690640877,-500.0,0.00055342,120]
[340152398,1728690640886,-29908.35,0.00055342,18]
[340152399,1728690640895,-500.0,0.00055342,120]
[340152400,1728690640906,-500.0,0.00055616,120]
[340152401,1728690640916,-29908.35,0.00055616,18]
[340152402,1728690640927,-500.0,0.00055616,120]
[340152403,1728690640937,-500.0,0.0005589,120]
[340152404,1728690640946,-29908.35,0.0005589,18]
[340152405,1728690640956,-500.0,0.0005589,120]
[340152406,1728690640966,-461.05558458,0.00056142,15]
[340152407,1728690640977,-500.0,0.00056164,120]
[340152408,1728690640988,-29908.35,0.00056164,18]
[340152409,1728690640999,-500.0,0.00056164,120]
[340152410,1728690641012,-2500.0,0.00056164,120]
[340152411,1728690641023,-29908.35,0.00056438,18]
[340152412,1728690641034,-500.0,0.00056438,120]
[340152413,1728690641044,-4218.30297381,0.00056553,28]
[340152414,1728690641054,-150.112233,0.000566,15]
[340152415,1728690641063,-29908.35,0.00056712,18]
[340152416,1728690641082,-500.0,0.00056712,120]
[340152417,1728690641093,-153.0,0.00056773,120]
[340152418,1728690641103,-153.0,0.00056773,120]
[340152419,1728690641113,-153.0,0.00056773,120]
[340152420,1728690641191,-153.0,0.00056773,120]
[340152421,1728690641202,-29908.35,0.00056986,18]
[340152422,1728690641213,-500.0,0.00056986,120]
[340152423,1728690641222,-29908.35,0.0005726,18]
[340152424,1728690641234,-500.0,0.0005726,120]
[340152425,1728690641244,-1709.8,0.000573,30]
[340152426,1728690641253,-150.112233,0.000574,12]
[340152427,1728690641264,-29908.35,0.00057534,18]
[340152428,1728690641276,-500.0,0.00057534,120]
[340152429,1728690641287,-3750.0,0.00057534,120]
[340152430,1728690641297,-29908.35,0.00057808,18]
[340152431,1728690641307,-500.0,0.00057808,120]
[340152432,1728690641318,-2000.0,0.0005782,120]
[340152433,1728690641330,-190576.30437822,0.00058,2]
[340152434,1728690641341,-198.405478,0.00058,120]
[340152435,1728690641354,-151.0,0.00058,120]
[340152436,1728690641364,-151.0,0.00058,120]
[340152437,1728690641373,-151.0,0.00058,120]
[340152438,1728690641383,-311.884607,0.00058,120]
[340152439,1728690641392,-151.0,0.00058,120]
[340152440,1728690641401,-311.884607,0.00058,120]
[340152441,1728690641411,-151.0,0.00058,120]
[340152442,1728690641420,-151.0,0.00058,120]
[340152443,1728690641429,-151.0,0.00058,120]
[340152444,1728690641439,-151.0,0.00058,120]
[340152445,1728690641448,-151.0,0.00058,120]
[340152446,1728690641458,-151.0,0.00058,60]
[340152447,1728690641467,-151.0,0.00058,30]
[340152448,1728690641476,-151.0,0.00058,30]
[340152449,1728690641485,-29908.35,0.00058082,18]
[340152450,1728690641494,-500.0,0.00058082,120]
[340152451,1728690641504,-150.112233,0.000582,10]
[340152452,1728690641514,-151.0,0.00058356,120]
[340152453,1728690641523,-151.0,0.00058356,120]
[340152454,1728690641533,-151.0,0.00058356,120]
[340152455,1728690641542,-29908.35,0.00058356,18]
[340152456,1728690641551,-500.0,0.00058356,120]
[340152457,1728690641561,-29908.35,0.0005863,18]
[340152458,1728690641571,-500.0,0.0005863,120]
[340152459,1728690641581,-4218.30297381,0.00058719,28]
[340152460,1728690641591,-157.33,0.000589,60]
[340152461,1728690641601,-157.33,0.000589,60]
[340152462,1728690641611,-157.33,0.000589,60]
[340152463,1728690641621,-157.33,0.000589,60]
[340152464,1728690641632,-29908.35,0.00058904,18]
[340152465,1728690641642,-155.066597,0.00058904,120]
[340152466,1728690641652,-151.0,0.00058904,120]
[340152467,1728690641662,-151.0,0.00058904,120]
[340152468,1728690641673,-151.0,0.00058904,120]
[340152469,1728690641683,-500.0,0.00058904,120]
[340152470,1728690641694,-1000.0,0.00058999,120]
[340152471,1728690641704,-29908.35,0.00059178,18]
[340152472,1728690641715,-500.0,0.00059178,120]
[340152473,1728690641725,-400.0,0.00059236,2]
[340152474,1728690641736,-29908.35,0.00059452,18]
[340152475,1728690641747,-500.0,0.00059452,120]
[340152476,1728690641757,-29908.35,0.00059726,18]
[340152477,1728690641766,-500.0,0.00059726,120]
[340152478,1728690641777,-52835.834083,0.000599,30]
[340152479,1728690641988,-21.24464151,0.000599,30]
[340152509,1728690646811,-153.0,0.00054154,120]
[340152510,1728690646826,-153.0,0.00054154,120]
[340152511,1728690646840,-153.0,0.00054154,120]
[340152512,1728690646854,-164.077197,0.0005742,2]
[340152513,1728690646867,-1582.54153347,0.000599,30]
[340152514,1728690646881,-623.8,0.000599,30]
[340152515,1728690646996,164.0,0.00047,90]
[340152516,1728690651678,172.294931,0.00026986,2]
[340152523,1728691163548,172.294931,0.00026986,2]
[340152524,1728691203554,500.0,0.0001,2]
[340152525,1728691203861,500.0,0.0001,2]
[340152526,1728691204247,500.0,0.0001,2]
[340152531,1728691530264,-1947.57114848,0.00034748,2]
[340152532,1728691548160,581.88437721,0.00032001,2]
[340152534,1728691633096,-351.748968,0.00034743,2]
[340152535,1728691633119,-400.0,0.00034811,2]
[340152536,1728691633143,-400.0,0.00034811,2]
[340152537,1728691633274,-424.0,0.00034812,2]
[340152538,1728691633306,-15686.0893165,0.00034812,2]
[340152539,1728691633338,-14876.4292516,0.00034812,2]
[340152540,1728691633362,-384.48660705,0.00034812,7]
[340152541,1728691633385,-250.0,0.00034848,2]
[340152542,1728691633407,-660.0,0.00035628,2]
[340152543,1728691633431,-2118.698413,0.00035676,2]
[340152544,1728691633454,-3000.0,0.00035743,2]
[340152545,1728691633477,-756.5731717,0.000358,2]
[340152546,1728691633500,-854.4038823,0.00035826,2]
[340152547,1728691633523,-250.0,0.00036011,2]
[340152548,1728691633547,-250.0,0.0003611,2]
[340152549,1728691633571,-250.0,0.00036209,2]
[340152550,1728691633594,-250.0,0.00036308,2]
[340152551,1728691633615,-2118.698413,0.00036361,2]
[340152552,1728691633637,-250.0,0.00036406,2]
[340152553,1728691633660,-250.0,0.00036505,2]
[340152554,1728691633683,-250.0,0.00036604,2]
[340152555,1728691633706,-250.0,0.00036703,2]
[340152556,1728691633728,-250.0,0.00036801,2]
[340152557,1728691633751,-250.0,0.000369,2]
[340152558,1728691633772,-169.40087702,0.00036946,2]
[340152559,1728691633798,-250.0,0.00036999,2]
[340152560,1728691633820,-853.84,0.00037001,2]
[340152561,1728691633843,-535.41046731,0.00037001,2]
[340152562,1728691633863,-2118.698413,0.00037046,2]
[340152563,1728691633887,-250.0,0.00037098,2]
[340152564,1728691633913,-532.02974826,0.00037098,2]
[340152565,1728691633936,-32.31674378,0.00037173,5]
[340152566,1728691644185,-467.68325622,0.00037173,5]
[340152567,1728691644210,-500.0,0.00037173,5]
[340152568,1728691644233,-500.0,0.00037173,5]
[340152569,1728691644256,-250.0,0.00037197,2]
[340152570,1728691644277,-212.0,0.00037198,2]
[340152571,1728691644300,-212.73514974,0.00037198,15]
[340152572,1728691646118,-287.26485026,0.00037198,15]
[340152573,1728691646141,-500.0,0.00037198,15]
[340152574,1728691646164,-500.0,0.00037198,15]
[340152575,1728691646190,-500.0,0.00037198,15]
[340152576,1728691646214,-364.46142374,0.00037198,15]
[340152577,1728691646237,-500.0,0.00037198,15]
[340152578,1728691646263,-500.0,0.00037198,15]
[340152579,1728691646284,-500.0,0.00037198,15]
[340152580,1728691646305,-344.49023399,0.00037198,15]
[340152581,1728691646326,-500.0,0.00037198,15]
[340152582,1728691646348,-500.0,0.00037198,15]
[340152583,1728691646369,-537.8875962,0.00037198,15]
[340152584,1728691646391,-500.0,0.00037198,15]
[340152585,1728691646412,-500.0,0.00037198,15]
[340152586,1728691646434,-500.0,0.00037198,15]
[340152587,1728691646456,-500.0,0.00037198,15]
[340152588,1728691646477,-500.0,0.00037198,15]
[340152589,1728691646498,-500.0,0.00037198,15]
[340152590,1728691646520,-500.0,0.00037198,15]
[340152591,1728691646541,-500.0,0.00037198,15]
[340152592,1728691646561,-500.0,0.00037198,15]
[340152593,1728691646583,-595.89451671,0.00037198,15]
[340152594,1728691646604,-500.0,0.00037198,15]
[340152595,1728691646624,-500.0,0.00037198,15]
[340152596,1728691646646,-500.0,0.00037198,15]
[340152597,1728691646668,-500.0,0.00037198,15]
[340152598,1728691646694,-500.0,0.00037198,15]
[340152599,1728691646717,-500.0,0.00037198,15]
[340152600,1728691646738,-500.0,0.00037198,15]
[340152601,1728691646760,-500.0,0.00037198,15]
[340152602,1728691646782,-500.0,0.00037198,15]
[340152603,1728691646805,-500.0,0.00037198,15]
[340152604,1728691646831,-500.0,0.00037198,15]
[340152605,1728691646853,-500.0,0.00037198,15]
[340152606,1728691646879,-500.0,0.00037198,15]
[340152607,1728691646906,-500.0,0.00037198,15]
[340152608,1728691646931,-500.0,0.00037198,15]
[340152609,1728691646956,-500.0,0.00037198,15]
[340152610,1728691646979,-500.0,0.00037198,15]
[340152611,1728691647003,-291.7725469,0.00037198,15]
[340152613,1728691740945,3453.0,0.00025,2]
[340152614,1728691745099,-168.474249,0.00033249,2]
[340152615,1728691745127,-300.0,0.00036491,2]
[340152616,1728691745152,-400.0,0.00036491,2]
[340152617,1728691745176,-24900.0,0.00036492,2]
[340152618,1728691745202,-4034.31387354,0.00037098,2]
[340152619,1728691745229,-1007.21964997,0.00037197,2]
[340152620,1728691745256,-18138.42051123,0.000372,103]
[340152621,1728691745285,-250.0,0.00037295,2]
[340152622,1728691745310,-250.0,0.00037394,2]
[340152623,1728691745337,-250.0,0.00037493,2]
[340152624,1728691745366,-250.0,0.00037592,2]
[340152625,1728691745393,-250.0,0.0003769,2]
[340152626,1728691745419,-250.0,0.00037789,2]
[340152627,1728691745443,-250.0,0.00037888,2]
[340152628,1728691745470,-1000.0,0.00038542,5]
[340152629,1728691745498,-1000.0,0.00038542,5]
[340152630,1728691745524,-560.0,0.00039066,5]
[340152631,1728691745550,-532.02974822,0.00039546,2]
[340152632,1728691745579,821.1584924,0.00032959,2]
[340152633,1728691747132,-315.84027575,0.00040546,5]
[340152634,1728691747157,-1500.0,0.00040546,5]
[340152635,1728691747187,-157.41,0.000414,31]
[340152636,1728691747212,-157.531855,0.00041407,2]
[340152637,1728691747367,-157.531855,0.00041424,2]
[340152638,1728691747392,-157.531855,0.00041441,2]
[340152639,1728691747415,-157.531855,0.00041458,2]
[340152640,1728691747436,-157.531855,0.00041476,2]